Workbook

Sheet Лист1
A1: Школа | C1: МБОУ «Школа №54» Авиастроительного района г.Казань | F1: Утвердил: | G1: должность | H1: Заместитель генерального директора АО"Департамент продовольствия и социального питания"г.Казань
A2: Типовое примерное меню приготавливаемых блюд | G2: фамилия | H2: Агапова
A3: Возрастная категория | E3: 7-11 лет | G3: дата | H3: 17 | I3: 11 | J3: 2025
H4: день | I4: месяц | J4: год
A5: Неделя | B5: День недели | C5: Прием пищи | D5: Раздел меню | E5: Блюда | F5: Вес блюда, г | G5: Белки | H5: Жиры | I5: Углеводы | J5: Калорийность | K5: № рецептуры | L5: Цена
A6: 1 | B6: 1 | C6: Завтрак | D6: гор.блюдо | E6: Котлеты из мяса птицы | F6: 90 | G6: 8.093 | H6: 9.930 | I6: 7.071 | J6: 150 | K6: ТТК от 2024 г
D7: гор.блюдо | E7: Каша гречневая рассыпчатая | F7: 150 | G7: 6.622 | H7: 5.399 | I7: 25.875 | J7: 179 | K7: №302/2015г,Дели
D8: гор.напиток | E8: Компот из замороженной компотной смеси | F8: 200 | G8: 0.135 | H8: 0.023 | I8: 11.150 | J8: 46 | K8: ТТК от 2021г
D9: хлеб | E9: Хлеб ржано-пшеничный/ Хлеб пшеничный | F9: 40 | G9: 2.520 | H9: 0.360 | I9: 18.840 | J9: 91
D10: фрукты | E10: Плоды и ягоды свежие (яблоки) | F10: 100 | G10: 0.400 | H10: 0.400 | I10: 9.800 | J10: 47 | K10: №338 Дели 2015г
D12: конд. изд. | E12: Фруктовое пюре | F12: 125 | G12: 0.000 | H12: 0.000 | I12: 15.000 | J12: 60
D13: итого | F13: =SUM(F6:F12) -> 705 | G13: =SUM(G5:G12) -> 17.770 | H13: =SUM(H5:H12) -> 16.112 | I13: =SUM(I5:I12) -> 87.736 | J13: =SUM(J5:J12) -> 573 | L13: 89.77
A14: =A6 -> 1 | B14: =B6 -> 1 | C14: Обед | D14: закуска
D15: 1 блюдо
D16: 2 блюдо
D17: гарнир
D18: напиток
D19: хлеб бел.
D20: хлеб черн.
D23: итого | F23: =SUM(F14:F22) -> 0 | G23: =SUM(G14:G22) -> 0 | H23: =SUM(H14:H22) -> 0 | I23: =SUM(I14:I22) -> 0 | J23: =SUM(J14:J22) -> 0 | L23: =SUM(L14:L22) -> 0
A24: =A6 -> 1 | B24: =B6 -> 1 | C24: Итого за день: | F24: =F13+F23 -> 705 | G24: =G13+G23 -> 17.77 | H24: =H13+H23 -> 16.112 | I24: =I13+I23 -> 87.736 | J24: =J13+J23 -> 573 | L24: =L13+L23 -> 89.77
A25: 1 | B25: 2 | C25: Завтрак | D25: гор.блюдо | E25: Жаркое из птицы (грудки куриные) | F25: 190 | G25: 12.912 | H25: 10.698 | I25: 33.990 | J25: 284 | K25: ТТК № 2739 от 07.12.2023г
D27: гор.напиток | E27: Напиток из урюка | F27: 200 | G27: 0.800 | H27: 0.064 | I27: 9.460 | J27: 42 | K27: ТТК №2693 от 14.09.2023 г
D28: хлеб | E28: Хлеб ржано-пшеничный/ Хлеб пшеничный | F28: 40 | G28: 2.520 | H28: 0.360 | I28: 18.840 | J28: 91
D30: закуска | E30: Салат из белокочанной капусты | F30: 60 | G30: 0.931 | H30: 3.051 | I30: 5.645 | J30: 54 | K30: №45/2015г,Дели
D31: конд. изд. | E31: Батончики (в ассортимент) | F31: 30 | G31: 1.800 | H31: 6.200 | I31: 15.400 | J31: 128
D32: итого | F32: =SUM(F25:F31) -> 520 | G32: =SUM(G25:G31) -> 18.963 | H32: =SUM(H25:H31) -> 20.373 | I32: =SUM(I25:I31) -> 83.335 | J32: =SUM(J25:J31) -> 599 | L32: 89.77
A33: =A25 -> 1 | B33: =B25 -> 2 | C33: Обед | D33: закуска
D34: 1 блюдо
D35: 2 блюдо
D36: гарнир
D37: напиток
D38: хлеб бел.
D39: хлеб черн.
D42: итого | F42: =SUM(F33:F41) -> 0 | G42: =SUM(G33:G41) -> 0 | H42: =SUM(H33:H41) -> 0 | I42: =SUM(I33:I41) -> 0 | J42: =SUM(J33:J41) -> 0 | L42: =SUM(L33:L41) -> 0
A43: =A25 -> 1 | B43: =B25 -> 2 | C43: Итого за день: | F43: =F32+F42 -> 520 | G43: =G32+G42 -> 18.963 | H43: =H32+H42 -> 20.373 | I43: =I32+I42 -> 83.335 | J43: =J32+J42 -> 599 | L43: =L32+L42 -> 89.77
A44: 1 | B44: 3 | C44: Завтрак | D44: гор.блюдо | E44: Гуляш из филе грудок индейки | F44: 90 | G44: 9.102 | H44: 7.346 | I44: 1.893 | J44: 110 | K44: ТТК июль 2021 г
D45: гор.блюдо | E45: Макаронные изделия отварные | F45: 150 | G45: 5.602 | H45: 5.068 | I45: 35.906 | J45: 212 | K45: №309/2015г Дели
D46: гор.напиток | E46: Чай с сахаром | F46: 208 | G46: 0.007 | H46: 0.002 | I46: 7.986 | J46: 32 | K46: ТТК от 2021г
D47: хлеб | E47: Хлеб ржано-пшеничный/ Хлеб пшеничный | F47: 40 | G47: 2.520 | H47: 0.360 | I47: 18.840 | J47: 91
D49: закуска | E49: Салат из свеклы отварной (с маслом) | F49: 60 | G49: 0.855 | H49: 3.653 | I49: 5.016 | J49: 56 | K49: №52/2015г,Дели
D50: конд. изд. | E50: Маффин шоколадный | F50: 30 | G50: 2.068 | H50: 4.341 | I50: 14.864 | J50: 107 | K50: ТТК от 19.06.2025 г
D51: итого | F51: =SUM(F44:F50) -> 578 | G51: =SUM(G44:G50) -> 20.154 | H51: =SUM(H44:H50) -> 20.770 | I51: =SUM(I44:I50) -> 84.505 | J51: =SUM(J44:J50) -> 608 | L51: 89.77
A52: =A44 -> 1 | B52: =B44 -> 3 | C52: Обед | D52: закуска
D53: 1 блюдо
D54: 2 блюдо
D55: гарнир
D56: напиток
D57: хлеб бел.
D58: хлеб черн.
D61: итого | F61: =SUM(F52:F60) -> 0 | G61: =SUM(G52:G60) -> 0 | H61: =SUM(H52:H60) -> 0 | I61: =SUM(I52:I60) -> 0 | J61: =SUM(J52:J60) -> 0 | L61: =SUM(L52:L60) -> 0
A62: =A44 -> 1 | B62: =B44 -> 3 | C62: Итого за день: | F62: =F51+F61 -> 578 | G62: =G51+G61 -> 20.154 | H62: =H51+H61 -> 20.77 | I62: =I51+I61 -> 84.505 | J62: =J51+J61 -> 608 | L62: =L51+L61 -> 89.77
A63: 1 | B63: 4 | C63: Завтрак | D63: гор.блюдо | E63: Плов с говядиной | F63: 190 | G63: 13.604 | H63: 15.543 | I63: 35.965 | J63: 338 | K63: ТТК 2021г
D65: гор.напиток | E65: Компот из свежих плодов (яблоки) | F65: 200 | G65: 0.080 | H65: 0.080 | I65: 11.940 | J65: 49 | K65: ТТК от 2021г
D66: хлеб | E66: Хлеб ржано-пшеничный/ Хлеб пшеничный | F66: 40 | G66: 2.520 | H66: 0.360 | I66: 18.840 | J66: 91
D67: фрукты | E67: Плоды и ягоды свежие (яблоки) | F67: 100 | G67: 0.400 | H67: 0.400 | I67: 9.800 | J67: 47 | K67: №338 Дели 2015г
D69: конд. изд. | E69: Печенье сдобное шоколадное | F69: 15 | G69: 1.166 | H69: 4.183 | I69: 9.224 | J69: 79 | K69: ТТК(Акт19.09.2018г)
D70: итого | F70: =SUM(F63:F69) -> 545 | G70: =SUM(G63:G69) -> 17.770 | H70: =SUM(H63:H69) -> 20.566 | I70: =SUM(I63:I69) -> 85.769 | J70: =SUM(J63:J69) -> 604 | L70: 89.77
A71: =A63 -> 1 | B71: =B63 -> 4 | C71: Обед | D71: закуска
D72: 1 блюдо
D73: 2 блюдо
D74: гарнир
D75: напиток
D76: хлеб бел.
D77: хлеб черн.
D80: итого | F80: =SUM(F71:F79) -> 0 | G80: =SUM(G71:G79) -> 0 | H80: =SUM(H71:H79) -> 0 | I80: =SUM(I71:I79) -> 0 | J80: =SUM(J71:J79) -> 0 | L80: =SUM(L71:L79) -> 0
A81: =A63 -> 1 | B81: =B63 -> 4 | C81: Итого за день: | F81: =F70+F80 -> 545 | G81: =G70+G80 -> 17.77 | H81: =H70+H80 -> 20.566 | I81: =I70+I80 -> 85.769 | J81: =J70+J80 -> 604 | L81: =L70+L80 -> 89.77
A82: 1 | B82: 5 | C82: Завтрак | D82: гор.блюдо | E82: Котлеты аппетитные мясо-куриные | F82: 90 | G82: 10.769 | H82: 9.869 | I82: 8.996 | J82: 168 | K82: ТТК от 01.11.2022 г
D83: гор.блюдо | E83: Пюре картофельное | F83: 150 | G83: 3.282 | H83: 4.657 | I83: 22.027 | J83: 146 | K83: №312/2015г Дели
D84: гор.напиток | E84: Чай с сахаром | F84: 208 | G84: 0.007 | H84: 0.002 | I84: 7.986 | J84: 32 | K84: ТТК от 2021г
D85: хлеб | E85: Хлеб ржано-пшеничный/ Хлеб пшеничный | F85: 40 | G85: 2.520 | H85: 0.360 | I85: 18.840 | J85: 91
D87: закуска | E87: Салат из моркови | F87: 60 | G87: 0.702 | H87: 3.051 | I87: 6.720 | J87: 58 | K87: №49 Сбор.2004г./ТТК
D88: конд. изд. | E88: Вафли весовые 1шт/ | F88: 21 | G88: 2.750 | H88: 2.500 | I88: 13.000 | J88: 86
D89: итого | F89: =SUM(F82:F88) -> 569 | G89: =SUM(G82:G88) -> 20.030 | H89: =SUM(H82:H88) -> 20.439 | I89: =SUM(I82:I88) -> 77.569 | J89: =SUM(J82:J88) -> 581 | L89: 89.77
A90: =A82 -> 1 | B90: =B82 -> 5 | C90: Обед | D90: закуска
D91: 1 блюдо
D92: 2 блюдо
D93: гарнир
D94: напиток
D95: хлеб бел.
D96: хлеб черн.
D99: итого | F99: =SUM(F90:F98) -> 0 | G99: =SUM(G90:G98) -> 0 | H99: =SUM(H90:H98) -> 0 | I99: =SUM(I90:I98) -> 0 | J99: =SUM(J90:J98) -> 0 | L99: =SUM(L90:L98) -> 0
A100: =A82 -> 1 | B100: =B82 -> 5 | C100: Итого за день: | F100: =F89+F99 -> 569 | G100: =G89+G99 -> 20.03 | H100: =H89+H99 -> 20.439 | I100: =I89+I99 -> 77.569 | J100: =J89+J99 -> 581 | L100: =L89+L99 -> 89.77
A101: 1 | B101: 6 | C101: Завтрак | D101: гор.блюдо | E101: Пельмени для умников и умниц отварные с соусом переменка | F101: 180 | G101: 16.100 | H101: 17.111 | I101: 38.004 | J101: 370 | K101: ТТК Январь 2020г
D103: гор.напиток | E103: Компот из замороженной компотной смеси | F103: 200 | G103: 0.135 | H103: 0.023 | I103: 11.150 | J103: 46 | K103: ТТК от 2021г
D104: хлеб | E104: Хлеб ржано-пшеничный/ Хлеб пшеничный | F104: 40 | G104: 2.520 | H104: 0.360 | I104: 18.840 | J104: 91
D105: фрукты | E105: Плоды и ягоды свежие (яблоки) | F105: 100 | G105: 0.400 | H105: 0.400 | I105: 9.800 | J105: 47 | K105: №338 Дели 2015г
D107: конд. изд. | E107: Оладьи со сгущеным молоком 1 шт/30/5 г | F107: 35 | G107: 0.540 | H107: 1.544 | I107: 3.975 | J107: 32
D108: итого | F108: =SUM(F101:F107) -> 555 | G108: =SUM(G101:G107) -> 19.695 | H108: =SUM(H101:H107) -> 19.438 | I108: =SUM(I101:I107) -> 81.769 | J108: =SUM(J101:J107) -> 586 | L108: 89.77
A109: =A101 -> 1 | B109: 6 | C109: Обед | D109: закуска
D110: 1 блюдо
D111: 2 блюдо
D112: гарнир
D113: напиток
D114: хлеб бел.
D115: хлеб черн.
D118: итого | F118: =SUM(F109:F117) -> 0 | G118: =SUM(G109:G117) -> 0 | H118: =SUM(H109:H117) -> 0 | I118: =SUM(I109:I117) -> 0 | J118: =SUM(J109:J117) -> 0 | L118: =SUM(L109:L117) -> 0
A119: =A101 -> 1 | B119: =B101 -> 6 | C119: Итого за день: | F119: =F108+F118 -> 555 | G119: =G108+G118 -> 19.695 | H119: =H108+H118 -> 19.438 | I119: =I108+I118 -> 81.769 | J119: =J108+J118 -> 586 | L119: =L108+L118 -> 89.77
A120: 2 | B120: 1 | C120: Завтрак | D120: гор.блюдо | E120: Котлеты сытные | F120: 90 | G120: 13.159 | H120: 13.248 | I120: 8.104 | J120: 204 | K120: ТТК 2020 г
D121: гор.блюдо | E121: Каша гречневая вязкая | F121: 150 | G121: 3.500 | H121: 4.643 | I121: 22.028 | J121: 144 | K121: ТТК 2014 г
D122: гор.напиток | E122: Чай с сахаром | F122: 208 | G122: 0.007 | H122: 0.002 | I122: 7.986 | J122: 32 | K122: ТТК от 2021г
D123: хлеб | E123: Хлеб ржано-пшеничный/ Хлеб пшеничный | F123: 40 | G123: 2.520 | H123: 0.360 | I123: 18.840 | J123: 91
D124: фрукты | E124: Плоды и ягоды свежие (яблоки) | F124: 100 | G124: 0.400 | H124: 0.400 | I124: 9.800 | J124: 47 | K124: №338 Дели 2015г
D126: конд. изд. | E126: Оладьи со сгущеным молоком 1 шт/30/5 г | F126: 35 | G126: 0.540 | H126: 1.544 | I126: 3.975 | J126: 32
D127: итого | F127: =SUM(F120:F126) -> 623 | G127: =SUM(G120:G126) -> 20.126 | H127: =SUM(H120:H126) -> 20.197 | I127: =SUM(I120:I126) -> 70.733 | J127: =SUM(J120:J126) -> 550 | L127: 89.77
A128: =A120 -> 2 | B128: =B120 -> 1 | C128: Обед | D128: закуска
D129: 1 блюдо
D130: 2 блюдо
D131: гарнир
D132: напиток
D133: хлеб бел.
D134: хлеб черн.
D137: итого | F137: =SUM(F128:F136) -> 0 | G137: =SUM(G128:G136) -> 0 | H137: =SUM(H128:H136) -> 0 | I137: =SUM(I128:I136) -> 0 | J137: =SUM(J128:J136) -> 0 | L137: =SUM(L128:L136) -> 0
A138: =A120 -> 2 | B138: =B120 -> 1 | C138: Итого за день: | F138: =F127+F137 -> 623 | G138: =G127+G137 -> 20.126 | H138: =H127+H137 -> 20.197 | I138: =I127+I137 -> 70.733 | J138: =J127+J137 -> 550 | L138: =L127+L137 -> 89.77
A139: 2 | B139: 2 | C139: Завтрак | D139: гор.блюдо | E139: Жаркое по-домашнему | F139: 190 | G139: 12.616 | H139: 13.616 | I139: 28.791 | J139: 289 | K139: ТТК 2023г
D141: гор.напиток | E141: Чай с сахаром | F141: 208 | G141: 0.007 | H141: 0.002 | I141: 7.986 | J141: 32 | K141: ТТК от 2021г
D142: хлеб | E142: Хлеб ржано-пшеничный/ Хлеб пшеничный | F142: 40 | G142: 2.520 | H142: 0.360 | I142: 18.840 | J142: 91
D144: закуска | E144: Салат из белокочанной капусты | F144: 60 | G144: 0.931 | H144: 3.051 | I144: 5.645 | J144: 54 | K144: №45/2015г,Дели
D145: конд. изд. | E145: Вафли весовые 1шт/ | F145: 21 | G145: 2.750 | H145: 2.500 | I145: 13.000 | J145: 86
D146: итого | F146: =SUM(F139:F145) -> 519 | G146: =SUM(G139:G145) -> 18.824 | H146: =SUM(H139:H145) -> 19.529 | I146: =SUM(I139:I145) -> 74.262 | J146: =SUM(J139:J145) -> 552 | L146: 89.77
A147: =A139 -> 2 | B147: =B139 -> 2 | C147: Обед | D147: закуска
D148: 1 блюдо
D149: 2 блюдо
D150: гарнир
D151: напиток
D152: хлеб бел.
D153: хлеб черн.
D156: итого | F156: =SUM(F147:F155) -> 0 | G156: =SUM(G147:G155) -> 0 | H156: =SUM(H147:H155) -> 0 | I156: =SUM(I147:I155) -> 0 | J156: =SUM(J147:J155) -> 0 | L156: =SUM(L147:L155) -> 0
A157: =A139 -> 2 | B157: =B139 -> 2 | C157: Итого за день: | F157: =F146+F156 -> 519 | G157: =G146+G156 -> 18.824 | H157: =H146+H156 -> 19.529 | I157: =I146+I156 -> 74.262 | J157: =J146+J156 -> 552 | L157: =L146+L156 -> 89.77
A158: 2 | B158: 3 | C158: Завтрак | D158: гор.блюдо | E158: Плов с куриными грудками | F158: 190 | G158: 12.760 | H158: 13.684 | I158: 32.883 | J158: 306 | K158: ТТК 2021г
D160: гор.напиток | E160: Напиток из шиповника | F160: 200 | G160: 0.012 | H160: 0.001 | I160: 10.178 | J160: 41 | K160: ТТК от 2021г
D161: хлеб | E161: Хлеб ржано-пшеничный/ Хлеб пшеничный | F161: 40 | G161: 2.520 | H161: 0.360 | I161: 18.840 | J161: 91
D162: фрукты | E162: Плоды и ягоды свежие (яблоки) | F162: 100 | G162: 0.400 | H162: 0.400 | I162: 9.800 | J162: 47 | K162: №338 Дели 2015г
D164: конд. изд. | E164: Батончики (в ассортимент) | F164: 30 | G164: 1.800 | H164: 6.200 | I164: 15.400 | J164: 128
D165: итого | F165: =SUM(F158:F164) -> 560 | G165: =SUM(G158:G164) -> 17.492 | H165: =SUM(H158:H164) -> 20.645 | I165: =SUM(I158:I164) -> 87.101 | J165: =SUM(J158:J164) -> 613 | L165: 89.77
A166: =A158 -> 2 | B166: =B158 -> 3 | C166: Обед | D166: закуска
D167: 1 блюдо
D168: 2 блюдо
D169: гарнир
D170: напиток
D171: хлеб бел.
D172: хлеб черн.
D175: итого | F175: =SUM(F166:F174) -> 0 | G175: =SUM(G166:G174) -> 0 | H175: =SUM(H166:H174) -> 0 | I175: =SUM(I166:I174) -> 0 | J175: =SUM(J166:J174) -> 0 | L175: =SUM(L166:L174) -> 0
A176: =A158 -> 2 | B176: =B158 -> 3 | C176: Итого за день: | F176: =F165+F175 -> 560 | G176: =G165+G175 -> 17.492 | H176: =H165+H175 -> 20.645 | I176: =I165+I175 -> 87.101 | J176: =J165+J175 -> 613 | L176: =L165+L175 -> 89.77
A177: 2 | B177: 4 | C177: Завтрак | D177: гор.блюдо | E177: Фрикассе из куриных грудок | F177: 100 | G177: 9.055 | H177: 7.071 | I177: 3.601 | J177: 114 | K177: ТТК июль 2021г
D178: гор.блюдо | E178: Макаронные изделия отварные | F178: 150 | G178: 5.602 | H178: 5.068 | I178: 35.906 | J178: 212 | K178: №309/2015г Дели
D179: гор.напиток | E179: Чай с сахаром | F179: 208 | G179: 0.007 | H179: 0.002 | I179: 7.986 | J179: 32 | K179: ТТК от 2021г
D180: хлеб | E180: Хлеб ржано-пшеничный/ Хлеб пшеничный | F180: 40 | G180: 2.520 | H180: 0.360 | I180: 18.840 | J180: 91
D182: закуска | E182: Салат из свеклы отварной (с маслом) | F182: 60 | G182: 0.855 | H182: 3.653 | I182: 5.016 | J182: 56 | K182: №52/2015г,Дели
D183: конд. изд. | E183: Маффин классический | F183: 30 | G183: 2.068 | H183: 4.341 | I183: 14.864 | J183: 107
D184: итого | F184: =SUM(F177:F183) -> 588 | G184: =SUM(G177:G183) -> 20.107 | H184: =SUM(H177:H183) -> 20.495 | I184: =SUM(I177:I183) -> 86.213 | J184: =SUM(J177:J183) -> 612 | L184: 89.77
A185: =A177 -> 2 | B185: =B177 -> 4 | C185: Обед | D185: закуска
D186: 1 блюдо
D187: 2 блюдо
D188: гарнир
D189: напиток
D190: хлеб бел.
D191: хлеб черн.
D194: итого | F194: =SUM(F185:F193) -> 0 | G194: =SUM(G185:G193) -> 0 | H194: =SUM(H185:H193) -> 0 | I194: =SUM(I185:I193) -> 0 | J194: =SUM(J185:J193) -> 0 | L194: =SUM(L185:L193) -> 0
A195: =A177 -> 2 | B195: =B177 -> 4 | C195: Итого за день: | F195: =F184+F194 -> 588 | G195: =G184+G194 -> 20.107 | H195: =H184+H194 -> 20.495 | I195: =I184+I194 -> 86.213 | J195: =J184+J194 -> 612 | L195: =L184+L194 -> 89.77
A196: 2 | B196: 5 | C196: Завтрак | D196: гор.блюдо | E196: Котлеты куриные "Нежные" | F196: 90 | G196: 11.557 | H196: 8.288 | I196: 6.947 | J196: 149 | K196: ТТК от 2024г
D197: гор.блюдо | E197: Пюре картофельное | F197: 150 | G197: 3.282 | H197: 4.657 | I197: 22.027 | J197: 146 | K197: ТТК
D198: гор.напиток | E198: Чай с сахаром | F198: 208 | G198: 0.007 | H198: 0.002 | I198: 7.986 | J198: 32 | K198: ТТК от 2021г
D199: хлеб | E199: Хлеб ржано-пшеничный/ Хлеб пшеничный | F199: 40 | G199: 2.520 | H199: 0.360 | I199: 18.840 | J199: 91
D201: закуска | E201: Салат из моркови | F201: 60 | G201: 0.702 | H201: 3.051 | I201: 6.720 | J201: 58 | K201: №49 Сбор.2004г./ТТК
D202: конд. изд. | E202: Печенье сдобное Американер с кунжутом | F202: 15 | G202: 1.246 | H202: 4.314 | I202: 9.270 | J202: 81
D203: итого | F203: =SUM(F196:F202) -> 563 | G203: =SUM(G196:G202) -> 19.314 | H203: =SUM(H196:H202) -> 20.672 | I203: =SUM(I196:I202) -> 71.790 | J203: =SUM(J196:J202) -> 557 | L203: 89.77
A204: =A196 -> 2 | B204: =B196 -> 5 | C204: Обед | D204: закуска
D205: 1 блюдо
D206: 2 блюдо
D207: гарнир
D208: напиток
D209: хлеб бел.
D210: хлеб черн.
D213: итого | F213: =SUM(F204:F212) -> 0 | G213: =SUM(G204:G212) -> 0 | H213: =SUM(H204:H212) -> 0 | I213: =SUM(I204:I212) -> 0 | J213: =SUM(J204:J212) -> 0 | L213: =SUM(L204:L212) -> 0
A214: =A196 -> 2 | B214: =B196 -> 5 | C214: Итого за день: | F214: =F203+F213 -> 563 | G214: =G203+G213 -> 19.314 | H214: =H203+H213 -> 20.672 | I214: =I203+I213 -> 71.79 | J214: =J203+J213 -> 557 | L214: =L203+L213 -> 89.77
A215: 2 | B215: 6 | C215: Завтрак | D215: гор.блюдо | E215: Сосиски отварные с соусом для запекания | F215: 90 | G215: 10.216 | H215: 11.143 | I215: 3.758 | J215: 156 | K215: №243/2015 Дели
D216: гор.блюдо | E216: Каша рисовая вязкая | F216: 150 | G216: 2.303 | H216: 4.129 | I216: 23.944 | J216: 142 | K216: №303/2015г,Дели
D217: гор.напиток | E217: Чай с сахаром | F217: 208 | G217: 0.007 | H217: 0.002 | I217: 7.986 | J217: 32 | K217: ТТК от 2021г
D218: хлеб | E218: Хлеб ржано-пшеничный/ Хлеб пшеничный | F218: 40 | G218: 2.520 | H218: 0.360 | I218: 18.840 | J218: 91
D219: фрукты | E219: Плоды и ягоды свежие (яблоки) | F219: 100 | G219: 0.400 | H219: 0.400 | I219: 9.800 | J219: 47 | K219: №338 Дели 2015г
D221: конд. изд. | E221: Фруктовое пюре | F221: 125 | G221: 0.000 | H221: 0.000 | I221: 15.000 | J221: 60
D222: итого | F222: =SUM(F215:F221) -> 713 | G222: =SUM(G215:G221) -> 15.446 | H222: =SUM(H215:H221) -> 16.034 | I222: =SUM(I215:I221) -> 79.328 | J222: =SUM(J215:J221) -> 528 | L222: 89.77
A223: =A215 -> 2 | B223: 6 | C223: Обед | D223: закуска
D224: 1 блюдо
D225: 2 блюдо
D226: гарнир
D227: напиток
D228: хлеб бел.
D229: хлеб черн.
D232: итого | F232: =SUM(F223:F231) -> 0 | G232: =SUM(G223:G231) -> 0 | H232: =SUM(H223:H231) -> 0 | I232: =SUM(I223:I231) -> 0 | J232: =SUM(J223:J231) -> 0 | L232: =SUM(L223:L231) -> 0
A233: =A215 -> 2 | B233: =B215 -> 6 | C233: Итого за день: | F233: =F222+F232 -> 713 | G233: =G222+G232 -> 15.446 | H233: =H222+H232 -> 16.034 | I233: =I222+I232 -> 79.328 | J233: =J222+J232 -> 528 | L233: =L222+L232 -> 89.77
C234: Среднее значение за период: | F234: =(F233+F214+F195+F176+F157+F138+F119+F100+F81+F62+F43+F24)/12 -> 587 | G234: =(G233+G214+G195+G176+G157+G138+G119+G100+G81+G62+G43+G24)/12 -> 18.808 | H234: =(H233+H214+H195+H176+H157+H138+H119+H100+H81+H62+H43+H24)/12 -> 19.606 | I234: =(I233+I214+I195+I176+I157+I138+I119+I100+I81+I62+I43+I24)/12 -> 80.843 | J234: =(J233+J214+J195+J176+J157+J138+J119+J100+J81+J62+J43+J24)/12 -> 580 | L234: =L223+L233 -> 89.77
